bitfinex/quotes_SOLUSD_20230101
["timestamp","ask_amount","ask_price","bid_price","bid_amount"]
[1672542877451,75.34,9.9686,9.9604,20.0]
[1672542877984,40.0,9.9685,9.9604,20.0]
[1672542878190,75.34,9.9684,9.9604,20.0]
[1672542878405,40.0,9.9683,9.9603,20.0]
[1672542878614,40.0,9.9681,9.9603,20.0]
[1672542878826,40.0,9.9679,9.9603,20.0]
[1672542879031,75.34,9.9678,9.9603,20.0]
[1672542879446,40.0,9.9685,9.9603,20.0]
[1672542879657,75.34,9.9684,9.9603,20.0]
[1672542879862,75.34,9.9686,9.9604,40.0]
[1672542880083,75.34,9.9688,9.9605,20.0]
[1672542880395,75.33,9.969,9.9606,40.0]
[1672542880609,40.0,9.9689,9.9606,40.0]
[1672542880809,75.34,9.9688,9.9605,20.0]
[1672542881138,40.0,9.9687,9.9605,20.0]
[1672542881326,75.34,9.9686,9.9605,20.0]
[1672542881536,40.0,9.9685,9.9603,20.0]
[1672542881760,75.34,9.9684,9.9603,20.0]
[1672542881968,40.0,9.9683,9.9603,20.0]
[1672542882188,40.0,9.9681,9.9603,20.0]
[1672542882499,40.0,9.9679,9.9603,20.0]
[1672542882813,40.0,9.9677,9.9603,20.0]
[1672542883027,40.0,9.9675,9.9603,20.0]
[1672542883232,75.35,9.9674,9.9603,20.0]
[1672542883440,40.0,9.9673,9.9603,20.0]
[1672542883653,75.35,9.9672,9.9603,20.0]
[1672542883866,40.0,9.9671,9.9603,20.0]
[1672542884058,40.0,9.9669,9.9603,20.0]
[1672542884265,75.35,9.9668,9.9603,20.0]
[1672542884694,40.0,9.9667,9.9603,20.0]
[1672542887634,40.0,9.9665,9.9603,20.0]
[1672542887846,75.35,9.9664,9.9603,20.0]
[1672542888060,40.0,9.9663,9.9603,20.0]
[1672542888704,40.0,9.9662,9.9603,20.0]
[1672542889862,40.0,9.9663,9.9603,20.0]
[1672542890073,75.35,9.9668,9.9604,40.0]
[1672542890302,75.34,9.9684,9.9605,20.0]
[1672542890505,75.34,9.9688,9.9605,20.0]
[1672542890702,40.0,9.9687,9.9605,20.0]
[1672542890910,75.34,9.9686,9.9605,20.0]
[1672542891138,40.0,9.9685,9.9605,20.0]
[1672542891355,40.0,9.9683,9.9605,20.0]
[1672542891665,75.34,9.9682,9.9605,20.0]
[1672542891858,40.0,9.9681,9.9605,20.0]
[1672542892065,40.0,9.9679,9.9605,20.0]
[1672542892290,75.34,9.968,9.9603,20.0]
[1672542892710,40.0,9.9689,9.9603,20.0]
[1672542892924,40.0,9.9687,9.9603,20.0]
[1672542893131,75.34,9.9686,9.9603,20.0]
[1672542893347,40.0,9.9685,9.9603,20.0]
[1672542893662,75.34,9.9684,9.9604,40.0]
[1672542893851,40.0,9.9689,9.9605,20.0]
[1672542894062,75.34,9.9688,9.9605,20.0]
[1672542894269,40.0,9.9687,9.9605,20.0]
[1672542894484,75.34,9.9686,9.9605,20.0]
[1672542894804,40.0,9.9689,9.9606,40.0]
[1672542895017,75.34,9.9688,9.9607,20.0]
[1672542895214,40.0,9.9689,9.9607,20.0]
[1672542895422,40.0,9.9689,9.9602,23.6194]
[1672542895423,40.0,9.9687,9.9603,20.0]
[1672542895656,75.34,9.9686,9.9603,20.0]
[1672542895855,40.0,9.9685,9.9603,20.0]
[1672542896067,40.0,9.9683,9.9603,20.0]
[1672542896269,75.34,9.9682,9.9603,20.0]
[1672542896484,40.0,9.9681,9.9603,20.0]
[1672542896694,40.0,9.9679,9.9603,20.0]
[1672542897017,40.0,9.9677,9.9603,20.0]
[1672542897225,40.0,9.9675,9.9603,20.0]
[1672542897548,40.0,9.9673,9.9603,20.0]
[1672542897760,75.35,9.9672,9.9603,20.0]
[1672542897957,40.0,9.9671,9.9603,20.0]
[1672542898173,40.0,9.9669,9.9603,20.0]
[1672542898381,75.35,9.9668,9.9603,20.0]
[1672542898593,40.0,9.9667,9.9603,20.0]
[1672542898919,40.0,9.9665,9.9603,20.0]
[1672542899121,40.0,9.9663,9.9603,20.0]
[1672542899317,75.36,9.9662,9.9603,20.0]
[1672542899525,40.0,9.9661,9.9603,20.0]
[1672542899736,40.0,9.9659,9.9603,20.0]
[1672542901213,40.0,9.9659,9.9505,298.3]
[1672542901214,75.36,9.9658,9.9505,298.3]
[1672542901445,75.36,9.9658,9.9524,22.5712]
[1672542901446,40.0,9.9647,9.9524,22.5712]
[1672542901621,75.37,9.9646,9.9524,22.5712]
[1672542901831,40.0,9.9645,9.9524,22.5712]
[1672542902062,40.0,9.9643,9.9524,22.5712]
[1672542902253,75.37,9.9642,9.9525,22.5712]
[1672542902462,40.0,9.9641,9.9526,22.5712]
[1672542902686,40.0,9.9639,9.9526,22.5712]
[1672542902897,75.37,9.9638,9.9526,22.5712]
[1672542903103,40.0,9.9637,9.9526,22.5712]
[1672542903324,40.0,9.9635,9.9526,22.5712]
[1672542903512,75.38,9.9634,9.9526,22.5712]
[1672542903723,40.0,9.9633,9.9526,22.5712]
[1672542903958,75.38,9.9632,9.9526,22.5712]
[1672542904142,40.0,9.9631,9.9526,22.5712]
[1672542904358,40.0,9.9629,9.9526,22.5712]
[1672542904572,75.38,9.9628,9.9526,22.5712]
[1672542905098,40.0,9.9627,9.9526,22.5712]
[1672542905314,75.38,9.9626,9.9526,22.5712]
[1672542905624,40.0,9.9625,9.9526,22.5712]
[1672542905832,75.38,9.9624,9.9526,22.5712]
[1672542906044,40.0,9.9623,9.9512,119.8312]
[1672542906264,40.0,9.9621,9.9512,119.8312]
[1672542906456,75.39,9.962,9.9512,119.8312]
[1672542906666,40.0,9.9619,9.9512,119.8312]
[1672542906876,75.39,9.9618,9.9512,119.8312]
[1672542907086,40.0,9.9617,9.9512,119.8312]
[1672542907296,40.0,9.9615,9.9512,119.8312]
[1672542907524,40.0,9.9613,9.9512,119.8312]
[1672542907738,75.39,9.9612,9.9512,119.8312]
[1672542907948,40.0,9.9611,9.9512,119.8312]
[1672542908167,75.39,9.961,9.9512,119.8312]
[1672542908346,40.0,9.9609,9.9512,119.8312]
[1672542908561,40.0,9.9607,9.9512,119.8312]
[1672542908783,40.0,9.9605,9.9512,119.8312]
[1672542908997,40.0,9.9603,9.9512,119.8312]
[1672542909189,75.4,9.9602,9.9512,119.8312]
[1672542909407,40.0,9.9601,9.9512,119.8312]
[1672542909627,40.0,9.9599,9.9512,119.8312]
[1672542909837,75.4,9.9598,9.9512,119.8312]
[1672542910054,40.0,9.9597,9.9512,119.8312]
[1672542910363,40.0,9.9595,9.9512,119.8312]
[1672542910583,40.0,9.9593,9.9512,119.8312]
[1672542910786,75.41,9.9592,9.9512,119.8312]
[1672542910976,40.0,9.9593,9.9512,119.8312]
[1672542912457,40.0,9.9591,9.9512,119.8312]
[1672542912787,40.0,9.9589,9.9512,119.8312]
[1672542912990,75.41,9.9588,9.9512,119.8312]
[1672542913213,40.0,9.9587,9.9512,119.8312]
[1672542913412,40.0,9.9585,9.9512,119.8312]
[1672542913631,75.41,9.9584,9.9512,119.8312]
[1672542913823,40.0,9.9583,9.9512,119.8312]
[1672542914252,40.0,9.9583,9.9419,40.0]
[1672542914458,40.0,9.9583,9.9462,20.0]
[1672542916558,40.0,9.9581,9.9453,20.0]
[1672542916772,40.0,9.9581,9.9454,39.0]
[1672542916993,40.0,9.9579,9.9455,20.0]
[1672542917508,40.0,9.9579,9.9457,40.0]
[1672542917719,40.0,9.9577,9.9457,40.0]
[1672542917928,40.0,9.9575,9.9458,20.0]
[1672542918130,75.42,9.9574,9.9458,20.0]
[1672542918349,40.0,9.9573,9.9458,20.0]
[1672542918996,40.0,9.9573,9.9459,40.0]
[1672542919317,40.0,9.9573,9.946,20.0]
[1672542921288,75.42,9.9576,9.9461,40.0]
[1672542921502,40.0,9.9579,9.9462,20.0]
[1672542922144,40.0,9.9577,9.9462,20.0]
[1672542922351,40.0,9.9575,9.9462,20.0]
[1672542922559,75.42,9.9574,9.9462,20.0]
[1672542922772,40.0,9.9573,9.9462,20.0]
[1672542922983,40.0,9.9571,9.9462,20.0]
[1672542923607,40.0,9.9571,9.9462,17.5]
[1672542925282,75.42,9.9572,9.9464,40.0]
[1672542925494,75.41,9.9586,9.9465,20.0]
[1672542925702,74.51422655,9.9697,9.9465,20.0]
[1672542925703,40.0,9.9581,9.9466,40.0]
[1672542925925,40.0,9.9579,9.9467,20.0]
[1672542926245,40.0,9.9577,9.9467,20.0]
[1672542926858,40.0,9.9577,9.9468,40.0]
[1672542927068,40.0,9.9575,9.9469,20.0]
[1672542927279,40.0,9.9573,9.9469,20.0]
[1672542928435,40.0,9.9571,9.9469,20.0]
[1672542929278,40.0,9.9569,9.9435,298.3]
[1672542929602,95.43,9.9568,9.9435,298.3]
[1672542929932,40.0,9.9567,9.9432,15.80730786]
[1672542930125,40.0,9.9565,9.9419,116.5832]
[1672542930337,40.0,9.9565,9.9405,40.0]
[1672542930338,75.43,9.9564,9.942,140.4915]
[1672542930541,40.0,9.9563,9.942,110.4915]
[1672542930744,75.43,9.9562,9.942,110.4915]
[1672542930957,40.0,9.9561,9.942,110.4915]
[1672542931285,40.0,9.9559,9.942,110.4915]
[1672542931519,40.0,9.9557,9.942,110.4915]
[1672542931718,75.44,9.9556,9.942,110.4915]
[1672542931935,40.0,9.9555,9.942,110.4915]
[1672542932139,40.0,9.9553,9.942,110.4915]
[1672542932353,40.0,9.9551,9.942,110.4915]
[1672542932564,75.44,9.955,9.942,110.4915]
[1672542932760,40.0,9.9549,9.942,110.4915]
[1672542932964,40.0,9.9547,9.942,110.4915]
[1672542933180,75.44,9.9546,9.942,110.4915]
[1672542933390,40.0,9.9545,9.942,110.4915]
[1672542933606,75.44,9.9544,9.9421,109.4979]
[1672542933831,40.0,9.9543,9.9421,109.4979]
[1672542934143,40.0,9.9541,9.9421,109.4979]
[1672542934349,40.0,9.9539,9.9421,109.4979]
[1672542934543,40.0,9.9537,9.9421,109.4979]
[1672542934758,75.45,9.9536,9.9421,109.4979]
[1672542934969,40.0,9.9535,9.9421,109.4979]
[1672542935175,40.0,9.9533,9.9422,40.0]
[1672542935385,40.0,9.9531,9.9421,109.4979]
[1672542935595,75.46,9.953,9.9421,109.4979]
[1672542935811,40.0,9.9529,9.9421,109.4979]
[1672542936022,40.0,9.9533,9.9405,40.0]
[1672542936023,74.51422655,9.9644,9.9428,30.0]
[1672542936240,0.00701575,9.955,9.9534,298.3]
[1672542936457,0.00701575,9.955,9.9536,40.0]
[1672542936668,0.00701575,9.955,9.9538,40.0]
[1672542936863,0.00701575,9.955,9.9539,20.0]
[1672542937068,40.0,9.9733,9.954,40.0]
[1672542937285,40.0,9.9731,9.9542,40.0]
[1672542937598,40.0,9.9729,9.9544,40.0]
[1672542937810,40.0,9.9727,9.9544,338.3]
[1672542938024,75.31,9.9726,9.9546,338.3]
[1672542938233,40.0,9.9725,9.9548,40.0]
[1672542938442,40.0,9.9723,9.955,40.0]
[1672542938654,75.31,9.9722,9.9551,20.0]
[1672542938875,40.0,9.9721,9.9549,15.80730786]
[1672542939088,40.0,9.9719,9.9479,40.0]
[1672542939405,40.0,9.9717,9.9481,40.0]
[1672542939598,95.31,9.9716,9.9482,20.0]
[1672542939813,40.0,9.9715,9.9483,338.3]
[1672542940016,40.0,9.9713,9.9485,40.0]
[1672542940233,40.0,9.9711,9.9486,20.0]
[1672542940433,40.0,9.9709,9.9487,338.3]
[1672542940649,95.32,9.9708,9.9489,40.0]
[1672542940974,52.43738101,9.9707,9.949,20.0]
[1672542941188,40.0,9.9705,9.9492,40.0]
[1672542941504,40.0,9.9705,9.9493,20.0]
[1672542941505,95.32,9.9704,9.9493,20.0]
[1672542941716,298.3,9.9701,9.9493,20.0]
[1672542941910,95.33,9.97,9.9493,20.0]
[1672542942117,40.0,9.9699,9.9493,20.0]
[1672542942323,75.33,9.9698,9.9494,109.429]
[1672542942548,40.0,9.9696,9.9495,20.0]
[1672542942746,75.33,9.9695,9.9495,20.0]
[1672542943081,40.0,9.9693,9.9496,109.429]
[1672542943290,95.33,9.9692,9.9497,20.0]
[1672542943611,40.0,9.9691,9.9497,128.7124]
[1672542943800,95.33,9.969,9.9497,128.7124]
[1672542944009,40.0,9.9689,9.9498,108.7124]
[1672542944225,40.0,9.9687,9.9499,20.0]
[1672542944441,95.34,9.9686,9.9499,20.0]
[1672542944661,40.0,9.9685,9.95,108.7124]
[1672542944858,40.0,9.9683,9.9501,20.0]
[1672542945070,75.34,9.9682,9.9501,20.0]
[1672542945393,60.0,9.9681,9.9502,108.7124]
[1672542945601,75.34,9.968,9.9503,20.0]
[1672542945805,75.34,9.968,9.9503,128.7124]
[1672542945806,60.0,9.9679,9.9503,128.7124]
[1672542946028,40.0,9.9677,9.9503,128.7124]
[1672542946213,95.34,9.9676,9.9503,128.7124]
[1672542946427,40.0,9.9675,9.9504,108.7124]
[1672542946656,40.0,9.9673,9.9505,20.0]
[1672542946866,95.35,9.9672,9.9505,20.0]
[1672542947074,40.0,9.9671,9.9506,110.3796]
[1672542947267,95.35,9.967,9.9507,20.0]
[1672542947479,40.0,9.9669,9.9507,20.0]
[1672542947707,40.0,9.9667,9.9508,110.3796]
[1672542947918,75.35,9.9666,9.9509,20.0]
[1672542948123,40.0,9.9665,9.9509,20.0]
[1672542948316,40.0,9.9665,9.951,110.3796]
[1672542948317,40.0,9.9663,9.951,110.3796]
[1672542948531,75.36,9.9662,9.951,110.3796]
[1672542948849,40.0,9.9661,9.951,110.3796]
[1672542949059,75.36,9.966,9.9511,110.3796]
[1672542949291,40.0,9.9659,9.9511,110.3796]
[1672542949598,40.0,9.9657,9.9511,110.3796]
[1672542949810,40.0,9.9655,9.9512,111.9027]
[1672542950008,75.36,9.9654,9.9512,111.9027]
[1672542950222,40.0,9.9653,9.9512,111.9027]
[1672542950418,40.0,9.9653,9.9513,111.9027]
[1672542950419,40.0,9.9651,9.9513,111.9027]
[1672542950625,40.0,9.9649,9.9513,111.9027]
[1672542950842,40.0,9.9647,9.9513,111.9027]
[1672542951050,75.37,9.9646,9.9514,111.9027]
[1672542951486,40.0,9.9645,9.9514,111.9027]
[1672542951701,40.0,9.9643,9.9515,111.9027]
[1672542952013,40.0,9.9641,9.9515,111.9027]
[1672542952222,75.37,9.964,9.9516,111.9027]
[1672542952414,40.0,9.9639,9.9516,111.9027]
[1672542952620,40.0,9.9637,9.9516,111.9027]
[1672542952844,75.37,9.9636,9.9516,111.9027]
[1672542953059,40.0,9.9637,9.9517,55.80730786]
[1672542953265,75.37,9.9636,9.9517,55.80730786]
[1672542953481,40.0,9.9635,9.9517,40.0]
[1672542953686,40.0,9.9633,9.9517,40.0]
[1672542953899,40.0,9.9633,9.9516,111.9027]
[1672542954111,40.0,9.9631,9.9516,111.9027]
[1672542954309,75.38,9.963,9.9516,111.9027]
[1672542954520,40.0,9.9629,9.9516,111.9027]
[1672542954731,40.0,9.9627,9.9516,111.9027]
[1672542954953,40.0,9.9625,9.9516,111.9027]
[1672542955166,75.38,9.9624,9.9517,40.0]
[1672542955365,40.0,9.9623,9.9517,40.0]
[1672542956095,75.38,9.9624,9.9517,40.0]
[1672542956304,40.0,9.9625,9.9517,40.0]
[1672542956727,40.0,9.9623,9.9517,40.0]
[1672542956939,75.39,9.9622,9.9516,111.9027]
[1672542957154,40.0,9.9621,9.9516,111.9027]
[1672542957369,40.0,9.9619,9.9516,111.9027]
[1672542957562,40.0,9.9619,9.9517,40.0]
[1672542958530,75.39,9.962,9.9517,40.0]
[1672542958744,11.26811124,9.9624,9.9517,40.0]
[1672542959142,11.26811124,9.9624,9.9518,15.80730786]
[1672542959353,11.26811124,9.9624,9.9519,40.0]
[1672542959899,11.26811124,9.9624,9.952,15.80730786]
[1672542960939,13.52173349,9.963,9.952,15.80730786]
[1672542962306,40.0,9.9629,9.952,15.80730786]
[1672542963765,13.52173349,9.963,9.952,15.80730786]
[1672542963980,13.52173349,9.963,9.9517,40.0]
[1672542964204,40.0,9.9629,9.9517,40.0]
[1672542965028,13.5272732,9.9628,9.9518,15.80730786]
[1672542965362,13.5272732,9.9628,9.9519,40.0]
[1672542965773,13.5272732,9.9628,9.9519,55.80730786]
[1672542966827,40.0,9.9627,9.9519,40.0]
[1672542967446,13.5272732,9.9628,9.9519,40.0]
[1672542967655,13.5272732,9.9628,9.9519,55.80730786]
[1672542968411,13.5272732,9.9628,9.9521,40.0]
[1672542968720,13.5272732,9.9628,9.9522,15.80730786]
[1672542968920,13.5272732,9.9628,9.9523,40.0]
[1672542969333,40.0,9.9627,9.9524,15.80730786]
[1672542969667,40.0,9.9627,9.939,10.971954]
[1672542969981,40.0,9.9627,9.9516,111.9027]
[1672542970294,13.5245034,9.9626,9.9516,111.9027]
[1672542971115,13.5245034,9.9626,9.9519,40.0]
[1672542971536,13.5245034,9.9626,9.952,15.80730786]
[1672542972163,40.0,9.963,9.952,15.80730786]
[1672542972394,113.4598,9.9631,9.952,15.80730786]
[1672542972606,40.0,9.963,9.952,15.80730786]
[1672542973124,13.52865805,9.9629,9.952,15.80730786]
[1672542974807,40.0,9.9628,9.9519,40.0]
[1672542975429,13.52865805,9.9629,9.9519,40.0]
[1672542976809,13.52865805,9.9629,9.952,15.80730786]
[1672542978592,40.0,9.9628,9.952,15.80730786]
[1672542978781,40.0,9.9628,9.9519,40.0]
[1672542978999,53.5272732,9.9628,9.9519,40.0]
[1672542979738,13.5272732,9.9628,9.9519,40.0]
[1672542980574,40.0,9.9627,9.9519,40.0]
[1672542981408,13.5272732,9.9628,9.9519,40.0]
[1672542982058,40.0,9.9627,9.9519,40.0]
[1672542982269,13.5272732,9.9628,9.9519,40.0]
[1672542982459,40.0,9.9627,9.9519,40.0]
[1672542982796,13.5272732,9.9628,9.952,15.80730786]
[1672542983207,13.52588831,9.9627,9.952,15.80730786]
[1672542983631,40.0,9.9626,9.952,15.80730786]
[1672542984677,13.52588831,9.9627,9.952,15.80730786]
[1672542985511,40.0,9.9626,9.952,15.80730786]
[1672542985733,13.52588831,9.9627,9.952,15.80730786]
[1672542985944,40.0,9.9626,9.952,15.80730786]
[1672542986689,113.4598,9.9631,9.952,15.80730786]
[1672542986898,40.0,9.963,9.952,15.80730786]
[1672542987111,13.52311846,9.9625,9.952,15.80730786]
[1672542987533,13.52311846,9.9625,9.9519,40.0]
[1672542988051,40.0,9.963,9.9519,40.0]
[1672542989199,40.0,9.963,9.9517,298.3]
[1672542989410,115.38,9.963,9.9516,111.9027]
[1672542994563,115.38,9.963,9.9517,40.0]
[1672542994980,13.52865805,9.9629,9.9517,40.0]
[1672542995191,40.0,9.9627,9.9517,40.0]
[1672542995404,40.0,9.9625,9.9517,40.0]
[1672542995632,40.0,9.9623,9.9517,40.0]
[1672542996870,40.0,9.9623,9.9516,111.9027]
[1672542997086,40.0,9.9621,9.9516,111.9027]
[1672542997295,40.0,9.9619,9.9516,111.9027]
[1672542997511,40.0,9.9617,9.9516,111.9027]
[1672542997722,74.89,9.9616,9.9517,40.0]
[1672542997918,40.0,9.9615,9.9517,40.0]
[1672542998124,40.0,9.9613,9.9517,40.0]
[1672542998334,40.0,9.9613,9.9516,111.9027]
[1672542998988,13.50511171,9.9612,9.9516,111.9027]
[1672542999425,40.0,9.961,9.9517,40.0]
[1672542999817,40.0,9.961,9.9516,111.9027]
[1672543000258,40.0,9.961,9.9517,40.0]
[1672543000466,40.0,9.9608,9.9516,111.9027]
[1672543001408,40.0,9.9608,9.9491,40.0]
[1672543001409,20.0,9.9607,9.9418,298.3]
[1672543001617,40.0,9.9605,9.9418,298.3]
[1672543001815,95.4,9.9604,9.9423,30.0]
[1672543002030,40.0,9.9603,9.9423,30.0]
[1672543002259,40.0,9.9601,9.9425,298.3]
[1672543002452,40.0,9.9599,9.9426,40.0]
[1672543002665,95.4,9.9598,9.9425,298.3]
[1672543002886,40.0,9.9597,9.9425,298.3]
[1672543003202,40.0,9.9595,9.9426,109.5017]
[1672543003414,40.0,9.9593,9.9426,109.5017]
[1672543003617,40.0,9.9591,9.9427,298.3]
[1672543003813,95.41,9.959,9.9428,40.0]
[1672543004025,40.0,9.9589,9.9428,40.0]
[1672543004252,40.0,9.9587,9.9427,407.8017]
[1672543004449,40.0,9.9587,9.9385,40.0]
[1672543004450,95.41,9.9586,9.9429,298.3]
[1672543004658,40.0,9.9585,9.9429,298.3]
[1672543004972,40.0,9.9583,9.943,40.0]
[1672543005181,40.0,9.9581,9.943,40.0]
[1672543005403,95.42,9.958,9.943,40.0]
[1672543005617,40.0,9.9579,9.943,55.80730786]
[1672543005934,40.0,9.9577,9.9432,40.0]
[1672543006128,40.0,9.9575,9.9432,40.0]
[1672543006339,40.0,9.9573,9.9432,40.0]
[1672543006573,95.42,9.9572,9.9432,40.0]
[1672543006766,40.0,9.9571,9.9432,40.0]
[1672543006977,40.0,9.9569,9.9432,40.0]
[1672543007172,40.0,9.9567,9.9433,15.80730786]
[1672543007612,111.5232,9.9566,9.9432,40.0]
[1672543007819,40.0,9.9565,9.9432,40.0]
[1672543008225,111.7869,9.9564,9.9432,40.0]
[1672543008444,40.0,9.9563,9.9433,15.80730786]
[1672543008649,40.0,9.9563,9.9429,113.758]
[1672543008650,40.0,9.9561,9.9429,113.758]
[1672543008865,75.43,9.956,9.9429,113.758]
[1672543009084,40.0,9.9559,9.9429,113.758]
[1672543009287,40.0,9.9557,9.9429,113.758]
[1672543009500,75.44,9.9556,9.9429,113.758]
[1672543009708,40.0,9.9555,9.9429,113.758]
[1672543009920,40.0,9.9553,9.9429,113.758]
[1672543010240,40.0,9.9551,9.9429,113.758]
[1672543010437,40.0,9.9549,9.9429,113.758]
[1672543010651,75.44,9.9548,9.9429,113.758]
[1672543010856,40.0,9.9547,9.943,40.0]
[1672543011079,40.0,9.9545,9.9429,113.758]
[1672543011294,40.0,9.9543,9.9429,113.758]
[1672543011800,40.0,9.9541,9.9429,113.758]
[1672543012441,40.0,9.9539,9.9429,113.758]
[1672543012649,40.0,9.9539,9.943,40.0]
[1672543013076,40.0,9.9537,9.943,40.0]
[1672543013480,40.0,9.9537,9.9429,113.758]
[1672543013694,40.0,9.9535,9.9429,113.758]
[1672543013909,40.0,9.9535,9.943,40.0]
[1672543014133,111.2362,9.9536,9.943,55.80730786]
[1672543014454,110.9029,9.9534,9.943,55.80730786]
[1672543014856,40.0,9.9532,9.943,55.80730786]
[1672543015590,40.0,9.953,9.943,40.0]
[1672543016010,40.0,9.9528,9.943,40.0]
[1672543016655,110.9029,9.9527,9.943,40.0]
[1672543017156,40.0,9.9526,9.943,40.0]
[1672543017370,40.0,9.9526,9.9429,113.758]
[1672543018954,16.7306049,9.9525,9.9429,113.758]
[1672543019171,40.0,9.9524,9.9429,113.758]
[1672543023053,16.72713549,9.9523,9.9429,113.758]
[1672543024730,80.34696721,9.9522,9.9319,298.3]
[1672543024983,75.46,9.9521,9.9319,409.8601]
[1672543025158,40.0,9.952,9.932,40.0]
[1672543025376,95.46,9.9519,9.9354,15.80730786]
[1672543025575,40.0,9.9518,9.9323,40.0]
[1672543025894,40.0,9.9516,9.9323,40.0]
[1672543026110,40.0,9.9514,9.9326,40.0]
[1672543026319,95.47,9.9513,9.9326,40.0]
[1672543026531,40.0,9.9512,9.9326,40.0]
[1672543026851,95.47,9.9511,9.935,15.80730786]
[1672543027057,40.0,9.951,9.9351,40.0]
[1672543027267,95.47,9.9509,9.9351,40.0]
[1672543027466,40.0,9.9508,9.9379,15.80730786]
[1672543027678,110.6845,9.951,9.9392,40.0]
[1672543027899,40.0,9.9509,9.9393,20.0]
[1672543028419,40.0,9.9509,9.9394,40.0]
[1672543028625,40.0,9.9509,9.9395,20.0]
[1672543029270,110.6845,9.951,9.9396,64.5516]
[1672543029475,110.6845,9.951,9.9397,60.0]
[1672543029880,110.6845,9.951,9.9398,24.5516]
[1672543030088,110.6845,9.951,9.9399,40.0]
[1672543030297,110.6845,9.951,9.94,20.0]
[1672543030528,110.6845,9.951,9.9401,40.0]
[1672543030734,110.6845,9.951,9.9402,298.3]
[1672543030927,110.6845,9.951,9.9404,40.0]
[1672543031139,16.70284567,9.9509,9.9405,20.0]
[1672543031373,16.70284567,9.9509,9.9406,40.0]
[1672543031586,16.70284567,9.9509,9.9408,40.0]
[1672543031779,16.70284567,9.9509,9.9408,338.3]
[1672543031992,16.70284567,9.9509,9.941,298.3]
[1672543032205,16.70284567,9.9509,9.9411,40.0]
[1672543032418,16.70284567,9.9509,9.9412,298.3]
[1672543032620,16.70284567,9.9509,9.9413,40.0]
[1672543032954,16.70284567,9.9509,9.9415,40.0]
[1672543033475,16.70284567,9.9509,9.9416,15.80730786]
[1672543033678,16.70284567,9.9509,9.9417,40.0]
[1672543034086,16.70284567,9.9509,9.9418,15.80730786]
[1672543034307,16.70284567,9.9509,9.9419,40.0]
[1672543034738,16.70284567,9.9509,9.942,15.80730786]
[1672543035146,16.70284567,9.9509,9.9421,40.0]
[1672543035674,16.70284567,9.9509,9.9422,15.80730786]
[1672543035888,16.70284567,9.9509,9.9418,40.0]
[1672543046842,16.70284567,9.9509,9.9419,298.3]
[1672543047059,16.70284567,9.9509,9.942,40.0]
[1672543047372,16.70284567,9.9509,9.9422,40.0]
[1672543048109,16.70284567,9.9509,9.9424,40.0]
[1672543048415,16.70284567,9.9509,9.9424,55.80730786]
[1672543052283,16.70284567,9.9509,9.9424,40.0]
[1672543054829,40.0,9.9508,9.9421,298.3]
[1672543055144,40.0,9.9508,9.942,23.1617]
[1672543055538,16.70284567,9.9509,9.942,23.1617]
[1672543056085,13.35950011,9.9507,9.942,23.1617]
[1672543058817,13.35950011,9.9507,9.9421,40.0]
[1672543061243,16.69937514,9.9507,9.9421,40.0]
[1672543062818,16.69937514,9.9507,9.942,23.1617]
[1672543063132,40.0,9.9506,9.942,23.1617]
[1672543063350,75.47,9.9505,9.942,23.1617]
[1672543063659,40.0,9.9504,9.942,23.1617]
[1672543064064,56.69416908,9.9504,9.942,23.1617]
[1672543065640,40.0,9.9502,9.942,23.1617]
[1672543065848,75.48,9.9501,9.942,23.1617]
[1672543066052,40.0,9.95,9.942,23.1617]
[1672543066282,75.48,9.9499,9.942,23.1617]
[1672543066710,16.69243366,9.9503,9.942,23.1617]
[1672543067763,40.0,9.9501,9.942,23.1617]
[1672543068683,16.69243366,9.9503,9.9421,40.0]
[1672543068998,40.0,9.9502,9.942,23.1617]
[1672543069226,16.69243366,9.9503,9.942,23.1617]
[1672543069445,16.69243366,9.9503,9.9421,40.0]